Cogmind - Beta 17 @@@ ROGUE MODE // 2026.08.04 @ 12:19:54 Player: stickman5564 Result: Destroyed by G-47 Trooper with Particle Gun Performance ------------- Evolutions (0) 0 Regions Visited (2) 400 Robots Destroyed (17) 85 Value Destroyed (540) 540 Prototype IDs (0) 0 Alien Tech Used (0) 0 Bonus (0) 0 TOTAL SCORE: 1025 Bonus ------- None Cogmind --------- Core Integrity 0/250 Matter 297/300 Energy 247/250 System Corruption 0% Temperature Cool (90) Movement Treading (160) Location -10/Mines Parts ------- > --- POWER (1) -------- Ion Engine > --- PROPULSION (2) --- Light Treads Light Treads > --- UTILITY (2) ------ Medium Storage Unit Signal Interpreter > --- WEAPON (2) ------- Beam Cannon Light Assault Rifle > --- INVENTORY (10) --- Ion Engine Ion Engine Aluminum Leg Aluminum Leg Hover Unit Medium Storage Unit Structural Scanner Signal Interpreter Power Shielding Utility Shielding Peak State ------------ > --- POWER ------------ Ion Engine > --- PROPULSION ------- Aluminum Leg Aluminum Leg > --- UTILITY ---------- Medium Storage Unit Power Shielding > --- WEAPON ----------- Small Laser Particle Gun > --- INVENTORY -------- Ion Engine Ion Engine Light Treads Light Treads Aluminum Leg Aluminum Leg Hover Unit Medium Storage Unit Structural Scanner Utility Shielding [Rating: 9] Favorites ----------- Power Ion Engine Engine Ion Engine Propulsion Aluminum Leg Treads Light Treads Leg Aluminum Leg Utility Medium Storage Unit Storage Medium Storage Unit Processor Signal Interpreter Protection Power Shielding Weapon Small Laser Energy Gun Small Laser Energy Cannon Beam Cannon Ballistic Gun Assault Rifle Build | -11 -10 -10 ------- Run | Yrd Mat Min Slots Evolved . | . . . Power . | . . . Propulsion . | . . . Utility . | . . . Weapon . | . . . Parts Attached 22 | 6 16 . Power 3 | 1 2 . Engine 3 | 1 2 . Core . | . . . Reactor . | . . . Propulsion 6 | 2 4 . Treads 2 | . 2 . Leg 4 | 2 2 . Wheel . | . . . Hover . | . . . Flight . | . . . Utility 5 | 1 4 . Device . | . . . Storage 2 | 1 1 . Processor 1 | . 1 . Hackware . | . . . Protection 2 | . 2 . Artifact . | . . . Weapon 8 | 2 6 . Energy Gun 5 | 1 4 . Energy Cannon 1 | . 1 . Ballistic Gun 2 | 1 1 . Ballistic Cannon . | . . . Launcher . | . . . Special Weapon . | . . . Impact Weapon . | . . . Slashing Weapon . | . . . Piercing Weapon . | . . . Special Melee Weapon . | . . . Unidentified Prototypes . | . . . Parts Lost 4 | . 4 . Power . | . . . Propulsion 1 | . 1 . Utility 1 | . 1 . Weapon 2 | . 2 . Highest Loss Streak 2 | . 2 . To Critical Strikes . | . . . Average Backups 9 | 4 9 10 Power 1 | . 1 2 Propulsion 3 | 2 3 3 Utility 3 | . 3 5 Weapon . | 1 . . Tool/Special . | . . . Unused Backups 10 | . 1 9 Power 3 | . 1 2 Propulsion 3 | . . 3 Utility 4 | . . 4 Weapon . | . . . Tool/Special . | . . . Average Slot Usage (%) 97 | . 97 100 Engine 14 | . 14 14 Treads 9 | . 5 28 Leg 17 | . 21 . Storage 14 | . 14 14 Processor 4 | . 2 14 Protection 8 | . 9 . Energy Gun 15 | . 18 . Energy Cannon 5 | . 3 14 Ballistic Gun 7 | . 6 14 Peak Build Rating 9 | 6 9 8 Average Rating 7 | 2 8 8 On Entrance 4 | . 6 8 Avg Prop Armor Cover (%) . | . . . Naked Turns . | . . . Heaviest Build 20 | 14 20 19 Greatest Support 40 | 20 40 40 Greatest Overweight (x) 3 | 3 1 . Average Overweight (x) . | . . . Largest Inventory Capacity 10 | 8 10 10 Average Capacity 9 | 7 9 10 Most Carried 10 | 8 10 10 Average Carried 9 | 4 9 10 Final Capacity 10 | 8 10 10 Final Carried 10 | 4 10 10 Class Distribution -------------------- 80% | Mutant 19% | Scavenger-Mutant Dominant Class ---------------- Mutant | -10/Materials Mutant | -10/Mines Resources | -11 -10 -10 ----------- Run | Yrd Mat Min Matter Collected 470 | 242 200 28 Remotely . | . . . Salvage Created 622 | . 530 92 Parts 38 | . 33 5 Haulers Intercepted . | . . . Recyclers Shooed . | . . . Parts Field Recycled . | . . . Retrieved Matter . | . . . Parts Self-Destructed . | . . . Prevented . | . . . Parts Restored . | . . . Kills | -11 -10 -10 ------- Run | Yrd Mat Min Combat Hostiles Destroyed 16 | . 14 2 Guns 14 | . 13 1 Cannons 2 | . 1 1 Classes Destroyed 3 | . 3 . Watcher 1 | . 1 . Swarmer 3 | . 3 . Grunt 13 | . 11 2 Best Kill Streak 5 | . 5 2 Combat Bots Only 5 | . 5 2 Max Kills in Single Turn 1 | . 1 1 Gunslinging . | . . . Exploded . | . . . Melee . | . . . Uniques/NPCs Destroyed . | . . . Combat | -11 -10 -10 -------- Run | Yrd Mat Min Hostile Shots Fired 114 | . 99 15 Missed 31 | . 26 5 Hits 83 | . 73 10 Projectile 83 | . 73 10 Critical Strikes 1 | . 1 . Damage Taken 1021 | . 891 130 Core 254 | . 202 52 Absorbed by Shields . | . . . Redirected to Shielding 63 | . 63 . Core Remaining (%) 100 | 100 . . Volleys Fired 48 | . 41 7 Largest 2 | . 2 2 Hottest 105 | . 105 80 Shots Fired 91 | . 77 14 Gun 79 | . 72 7 Cannon 12 | . 5 7 Launcher . | . . . Special . | . . . Kinetic 24 | . 17 7 Thermal 62 | . 55 7 Explosive . | . . . Electromagnetic 5 | . 5 . Robot Hit Streak 9 | . 9 9 Robot Miss Streak 3 | . 3 1 Penetration Max . | . . . Secondary Targets 1 | . 1 . Max Gunslinging Chain 1 | . 1 . Shots Hit Robots 65 | . 55 10 Core Hits 31 | . 27 4 Critical Kills 2 | . 1 1 Critical Parts Destroyed . | . . . Critical Strikes 3 | . 2 1 Burn 1 | . 1 . Destroy 2 | . 1 1 Melee Attacks . | . . . Impact . | . . . Slashing . | . . . Piercing . | . . . Sneak Attacks . | . . . Combat Hostiles . | . . . Follow-up Attacks . | . . . Damage Inflicted 863 | . 722 141 Guns 715 | . 661 54 Cannons 138 | . 51 87 Explosions . | . . . Melee . | . . . Ramming 10 | . 10 . Kinetic 231 | . 177 54 Thermal 570 | . 483 87 Explosive . | . . . Electromagnetic 52 | . 52 . Impact . | . . . Slashing . | . . . Piercing . | . . . Highest Corruption . | . . . Average Corruption . | . . . Corruption Purged . | . . . Corruption Blocked . | . . . Overload Shots . | . . . Overflow Damage . | . . . Projectiles . | . . . Explosions . | . . . Melee . | . . . Knockbacks . | . . . Impact . | . . . Kinetic . | . . . Secondary . | . . . Self-Inflicted Damage . | . . . Shots . | . . . Rammed . | . . . Targets Rammed 3 | . 3 . Kicked 3 | . 3 . Crushed . | . . . Highest Temperature 315 | . 315 139 Average Temperature 107 | . 113 67 Received Heat Transfer 567 | . 498 69 Effects 1 | . 1 . Energy Bleed 1 | . 1 . Siege Activations . | . . . Martial Activations . | . . . Shielding Activations . | . . . Robots Disrupted . | . . . Combat Hostiles . | . . . Robots Corrupted . | . . . Combat Hostiles . | . . . Parts Fried . | . . . Impact Corruptions . | . . . Robots Melted . | . . . Combat Hostiles . | . . . Parts Melted 2 | . 2 . Heat Transferred 1376 | . 1191 185 Parts Sabotaged . | . . . Parts Stolen . | . . . Parts Stripped . | . . . Power Chain Reactions . | . . . Alert | -11 -10 -10 ------- Run | Yrd Mat Min Maximum Alert Level . | . . . Low Security (%) 100 | 100 100 100 Level 1 . | . . . Level 2 . | . . . Level 3 . | . . . Level 4 . | . . . Level 5 . | . . . High Security . | . . . Max Security . | . . . Peak Influence 80 | . 80 71 Initial 21 | . . 21 Average 29 | . 31 33 Influence Increases 390 | . 340 50 Destroy 0b10 Robot/C 320 | . 280 40 Destroy 0b10 Robot/NC 5 | . 5 . Destroy Leader 62 | . 52 10 Destroy Structure 3 | . 3 . Influence Decreases 390 | . 284 106 Entered New Map 35 | . . 35 Time Decay 315 | . 244 71 Lost Part 40 | . 40 . Squads Dispatched 1 | . 1 . Investigation 1 | . 1 . Extermination . | . . . Reinforcement . | . . . Assault . | . . . Garrison . | . . . Intercept . | . . . Searches Triggered . | . . . Construction Impeded . | . . . Haulers Reinforced . | . . . Active Scanning Responses . | . . . Cargo Convoy Interrupts . | . . . Stealth | -11 -10 -10 --------- Run | Yrd Mat Min Distress Signals 3 | . 3 . Communications Jammed . | . . . Distress Signals . | . . . Times Spotted 25 | . 21 4 Peak Tracking Total 6 | . 6 2 Tactical Retreats . | . . . Traps | -11 -10 -10 ------- Run | Yrd Mat Min Traps Triggered 1 | . 1 . Indirectly . | . . . Trap Hack Attempts . | . . . Triggered . | . . . Disarmed . | . . . Reprogrammed . | . . . Reused . | . . . Traps Extracted . | . . . Installed . | . . . Triggered . | . . . Machines | -11 -10 -10 ---------- Run | Yrd Mat Min Machines Disabled . | . . . Max in Single Turn . | . . . Machines Repaired . | . . . Machines Dismantled . | . . . Machines Sabotaged . | . . . Overloaded Fab Kills . | . . . Hacking | -11 -10 -10 --------- Run | Yrd Mat Min Machines Accessed 3 | . 3 . Terminals 3 | . 3 . Fabricators . | . . . Repair Stations . | . . . Recycling Units . | . . . Scanalyzers . | . . . Garrison Access . | . . . Total Hacks 5 | . 5 . Successful 2 | . 2 . Failed 3 | . 3 . Catastrophic . | . . . Database Lockouts . | . . . Manual . | . . . Terminals 5 | . 5 . Fabricators . | . . . Repair Stations . | . . . Recycling Units . | . . . Scanalyzers . | . . . Garrison Access . | . . . Terminal Hacks 2 | . 2 . Record 1 | . 1 . Investigation Status 1 | . 1 . Fabricator Hacks . | . . . Repair Station Hacks . | . . . Recycling Unit Hacks . | . . . Scanalyzer . | . . . Garrison Access Hacks . | . . . Unauthorized Hacks . | . . . Terminals . | . . . Fabricators . | . . . Repair Stations . | . . . Recycling Units . | . . . Scanalyzers . | . . . Garrison Access . | . . . Data Cores Recovered . | . . . Used . | . . . Hacking Detections 3 | . 3 . Full Trace Events . | . . . Feedback Events . | . . . Feedback Blocked . | . . . Robot Schematics Acquired . | . . . Robots Built . | . . . Authchips . | . . . Time . | . . . Total Robot Build Rating . | . . . Part Schematics Acquired . | . . . Parts Built . | . . . Authchips . | . . . Time . | . . . Total Part Build Rating . | . . . Part Studies Acquired . | . . . Parts Repaired . | . . . Time . | . . . Parts Recycled . | . . . Recycled Matter . | . . . Retrieved Matter . | . . . Retrieved Components . | . . . Parts Scanalyzed . | . . . Part Schematics Acquired . | . . . Parts Damaged . | . . . Bothacking | -11 -10 -10 ------------ Run | Yrd Mat Min Used RIF Installer . | . . . Robots Hacked . | . . . Non-combat . | . . . Combat . | . . . Robot Hacks Applied . | . . . Relay Couplers Released . | . . . Fabnet Peak Effective % . | . . . Robots Rewired . | . . . Allies Hacked . | . . . Hacks Repelled . | . . . Allies | -11 -10 -10 -------- Run | Yrd Mat Min Total Allies 2 | . . 2 Largest Group 2 | . . 2 Highest-Rated Group 58 | . . 58 Highest-Rated Ally 31 | . . 31 Total Orders . | . . . Ally Attacks . | . . . Total Damage . | . . . Kills . | . . . Allies Corrupted . | . . . Allies Melted . | . . . Intel | -11 -10 -10 ------- Run | Yrd Mat Min Active Infowar (turns) . | . . . Robot Analysis Total . | . . . Derelict Logs Recovered . | . . . Drone Launches . | . . . Drone Recoveries . | . . . Exploration | -11 -10 -10 ------------- Run | Yrd Mat Min Turns Passed 981 | 68 752 161 Spaces Moved 547 | 44 422 81 Core 28 | 28 . . Treads 158 | . 77 81 Legs 361 | 16 345 . Wheels . | . . . Hover . | . . . Flight . | . . . Fastest Speed 50 | 50 120 160 Average Speed 131 | 119 127 160 Slowest Speed 200 | 200 190 160 Overloaded Moves . | . . . Propulsion Burnouts . | . . . Robots Hopped . | . . . Potential Cave-ins . | . . . Cave-ins Triggered . | . . . Exploration Rate (%) 30 | 4 61 25 Regions Visited 2 Branch Regions 1 Pre-discovered Areas . | . . . Known Exits Taken 1 | . 1 . Unknown Exits Taken 1 | 1 . . Scrap Searched 1 | . . 1 Spaces Dug . | . . . Terrain Destroyed . | . . . Melee . | . . . Projectile . | . . . AOE . | . . . Terrain Rammed . | . . . Walls Destroyed . | . . . Machines Disabled . | . . . Actions | -11 -10 -10 --------- Run | Yrd Mat Min Total 718 | 59 558 101 Wait 64 | . 51 13 Move 545 | 43 421 81 Hop . | . . . Pick Up 23 | 10 13 . Fast Attach 7 | . 7 . Attach 9 | 6 3 . Detach . | . . . Swap 7 | . 7 . Drop 12 | . 12 . Fire 48 | . 41 7 Melee . | . . . Ram . | . . . Kick 3 | . 3 . Crush . | . . . Escape Stasis . | . . . Rewire . | . . . Trap . | . . . Miscellaneous . | . . . Route ------- -11/Scrapyard -10/Materials -10/Mines History --------- Turn | Location | Event 19 | -11/Scrapyard | Discovered new exit (range 15) 69 | -11/Scrapyard | Entered Materials 364 | -10/Materials | Build established: Mutant 458 | -10/Materials | Core integrity fell below 50% 675 | -10/Materials | Discovered new exit (range 11) 720 | -10/Materials | Identified exit to Mines 762 | -10/Materials | Core integrity fell below 20% 821 | -10/Materials | Entered Mines 822 | -10/Mines | Assembled infested the area 982 | -10/Mines | Destroyed by G-47 Trooper with Particle Gun Last Messages --------------- R-06 Scavenger collects Flight Unit. LOCATION=MINES GOAL=ESCAPE ALERT: Infestation in the mines, dispatching Demolisher response squad. G-47 Trooper suffers critical hit (Destroy). G-47 Trooper destroyed. G-34 Mercenary destroyed. Acquired 28 matter. A pair of derelicts emerge from the shadows: "We're, um, lost. You wouldn't happen to know the way out of here, would you?" K-01 Serf cleans the Laser Drill. K-01 Serf collects debris. Searching scrap... Found Hcp. Matter Pod. Found Lrg. Matter Pod. Found Targeting Computer. Found 51 Matter. T-07 Excavator is excavating. Map ----- +----------------------------------------------------+ | ?????????????????????????????????? | | ??? ????????????????????????????? | | ??? ????????????????????????????? | | ??? ????????????????????????????? | | ??# #???????????????????????????? | | ??# #???????????????????????????? | | ??# #???????????????????????????? | | ??# #???????????????????????????? | | ??# #???###?????????????????????? | | ??# ##?# ####??????????????????? | | ### ## ##?????????????????? | | #?????????????????? | | ## #?????????##??????? | | ## #?????????? ??????? | | #?????????? ??????? | | #??????????gg??????? | | ## #??????????? ??????? | | # ###??????????# ??????? | | ##????????????# ??????? | | ##?????????????# ??????? | | #??????????????# #??????? | | # ##?????????????# #??????? | | #### ##????????????# #??????? | | ???# #????????????# #??????? | | ???# #?############ #??????? | | ???# #?# """ """ ##@#??????? | | ???# ### """ """ ##g#??????? | | ???## """ """ #??????? | | ????# ####??????? | | ????# ##### #?????????? | | ????## ##???# #?????????? | | ?????# #????### ######?????????? | | ????? ??????# #??????????????? | | ????# ???????# #??????????????? | | ????# ???????# #??????????????? | | ????# ???????# !#??????????????? | | ????# ????#!%#??##??????????? | | ????## ###! #? #??????????? | | ??????# ## #??????????? | | ???????# ## #???????????? | | ???????## ??# #???????????? | | ????????## ???#######???????????? | | ?????????#???????????????????????? | | ?????????????????????????????????? | | | | | | | | | | | | | +----------------------------------------------------+ Best States ------------- Heat Dissipation 25 Energy Generation 10 Energy Capacity 250 Matter Stores 300 Matter Capacity 300 Sight Range 16 Terrain Scan Density 10 Power Shielding 33 Propulsion Shielding 33 Evasion (%) 55 Recoil Reduction 2 Item Schematics ----------------- None Robot Schematics ------------------ None Fabricated ------------ Nothing Repaired ---------- Nothing Studied --------- None Alien Tech Used ----------------- None Achievements -------------- None Challenges ------------ None Game ------ Seed NetworkLaserBlade Manual? 0 Play Time 00:25:16 Cumulative 4.5 hours Start 2026.08.04 @ 11:53:21 End 2026.08.04 @ 12:19:54 Sessions 1 Manual Loads 0 Difficulty Rogue Special Mode None Game No. 5 Rogue 5 Adventurer 0 Explorer 0 Win Type - Total 0 Types 0/0/0/0/0/0/0/0/0/0 Lore% 5 Gallery% 4 Achievement% 6 Wizard Run 0 Options --------- Layout 1 ASCII 1 Keyboard 0 Movement Mouse Keybinds 0 Fullscreen 1 Font 24/Smallcaps Map View 50x40 Zoom Use 0% Tactical HUD 0 Map Filters NONE Filters NONE Steam 1 RUN: 6dbd741d-4c51-4e47-bd49-f7c109893302